fUST/lending_fUST_20250930
["ID","MTS","AMOUNT","RATE_DAILY","PERIOD"]
[388464116,1759179061908,-1811.478022,0.00023433,7]
[388464117,1759179061917,-1811.478022,0.00023433,7]
[388464118,1759179061927,-151.0,0.00023433,7]
[388464119,1759179061936,-1811.478022,0.00023433,7]
[388464120,1759179061945,-1811.478022,0.00023433,7]
[388464121,1759179061955,-10000.0,0.00023433,7]
[388464122,1759179061964,-10000.0,0.00023433,7]
[388464123,1759179061974,-10000.0,0.00023433,7]
[388464124,1759179061983,-10000.0,0.00023433,7]
[388464125,1759179061992,-7799.096414,0.00023433,7]
[388464126,1759179062002,-199.780283,0.00023433,7]
[388464127,1759179062011,-151.0,0.00023433,7]
[388464128,1759179062021,-199.780283,0.00023433,7]
[388464129,1759179062033,-199.780283,0.00023433,7]
[388464130,1759179062044,-199.780283,0.00023433,7]
[388464131,1759179062055,-151.0,0.00023433,7]
[388464132,1759179062066,-151.0,0.00023433,7]
[388464133,1759179062077,-295.488946,0.00023433,7]
[388464134,1759179062088,-151.0,0.00023433,7]
[388464135,1759179062101,-295.488946,0.00023433,7]
[388464136,1759179062111,-295.488946,0.00023433,7]
[388464137,1759179062122,-295.488946,0.00023433,7]
[388464138,1759179062135,-151.0,0.00023433,7]
[388464139,1759179062146,-6872.81598628,0.00023471,2]
[388464140,1759179062156,-1814.65971077,0.00023471,2]
[388464141,1759179062166,-151.0,0.000235,7]
[388464142,1759179062176,-5191.43,0.000235,2]
[388464143,1759179062185,-1669.76,0.00023508,3]
[388464144,1759179062197,-834.88,0.00023508,3]
[388464145,1759179062207,-160.0,0.00023509,3]
[388464146,1759179062216,-3339.5,0.00023509,3]
[388464147,1759179062226,-480.0,0.00023509,2]
[388464148,1759179062235,-2800.29,0.00023509,2]
[388464149,1759179062245,-480.0,0.00023509,2]
[388464150,1759179062258,-1030.87,0.00023509,2]
[388464151,1759179062267,-480.0,0.00023509,2]
[388464152,1759179062277,-13358.02,0.0002351,3]
[388464153,1759179062286,-6679.0,0.0002351,3]
[388464154,1759179062297,-417.44,0.0002351,3]
[388464155,1759179062307,-480.0,0.00023516,2]
[388464156,1759179062316,-480.0,0.00023516,2]
[388464157,1759179062326,-480.0,0.00023516,2]
[388464158,1759179062335,-480.0,0.00023516,2]
[388464159,1759179062344,-693.21,0.00023516,2]
[388464160,1759179062354,-1516.11,0.00023516,2]
[388464161,1759179062364,-2810.05,0.00023516,2]
[388464162,1759179062372,-688.92,0.00023516,2]
[388464163,1759179062382,-481.07189335,0.00023516,2]
[388464164,1759179062391,-480.0,0.00023516,2]
[388464165,1759179062400,-500.0,0.00023517,2]
[388464166,1759179062410,-1716.0,0.00023517,2]
[388464167,1759179062420,-480.0,0.00023517,2]
[388464168,1759179062429,-639.31,0.00023517,2]
[388464169,1759179062438,-480.0,0.00023517,2]
[388464170,1759179062448,-480.0,0.00023517,2]
[388464171,1759179062459,-480.0,0.00023517,2]
[388464172,1759179062469,-480.0,0.00023517,2]
[388464173,1759179062479,-480.0,0.00023517,2]
[388464174,1759179062490,-480.0,0.00023517,2]
[388464175,1759179062506,-802.35,0.00023517,2]
[388464176,1759179062524,-480.0,0.00023517,2]
[388464177,1759179062544,-480.0,0.00023517,2]
[388464178,1759179062564,-480.0,0.00023517,2]
[388464179,1759179062574,-1439.11,0.00023517,2]
[388464180,1759179062583,-480.0,0.00023517,2]
[388464181,1759179062592,-480.0,0.00023517,2]
[388464182,1759179062601,-1825.32,0.00023517,2]
[388464183,1759179062612,-480.0,0.00023517,2]
[388464184,1759179062621,-480.0,0.00023517,2]
[388464185,1759179062630,-480.0,0.00023517,2]
[388464186,1759179062640,-586.64,0.00023517,2]
[388464187,1759179062649,-480.0,0.00023517,2]
[388464188,1759179062657,-666.57,0.00023517,2]
[388464189,1759179062667,-480.0,0.00023517,2]
[388464190,1759179062676,-480.0,0.00023517,2]
[388464191,1759179062684,-480.0,0.00023517,2]
[388464192,1759179062694,-480.0,0.00023517,2]
[388464193,1759179062703,-623.78,0.00023517,2]
[388464194,1759179062713,-480.0,0.00023517,2]
[388464195,1759179062723,-489.72,0.00023517,2]
[388464196,1759179062732,-852.47,0.00023517,2]
[388464197,1759179062741,-480.0,0.00023517,2]
[388464198,1759179062750,-480.0,0.00023517,2]
[388464199,1759179062759,-480.0,0.00023517,2]
[388464200,1759179062768,-1341.68,0.00023517,2]
[388464201,1759179062778,-480.0,0.00023517,2]
[388464202,1759179062788,-480.0,0.00023517,2]
[388464203,1759179062798,-1727.56,0.00023517,2]
[388464204,1759179062808,-480.0,0.00023517,2]
[388464205,1759179062818,-480.0,0.00023517,2]
[388464206,1759179062827,-480.0,0.00023517,2]
[388464207,1759179062835,-504.51,0.00023517,2]
[388464208,1759179062845,-480.0,0.00023517,2]
[388464209,1759179062854,-480.0,0.00023517,2]
[388464210,1759179062864,-521.95,0.00023517,2]
[388464211,1759179062873,-480.0,0.00023517,2]
[388464212,1759179062882,-1149.13,0.00023517,2]
[388464213,1759179062891,-465.21,0.00023517,2]
[388464214,1759179062901,-480.0,0.00023517,2]
[388464215,1759179062910,-480.0,0.00023517,2]
[388464216,1759179062919,-1006.13,0.00023517,2]
[388464217,1759179062928,-480.0,0.00023517,2]
[388464218,1759179062938,-480.0,0.00023517,2]
[388464219,1759179062947,-5852.78991731,0.00023517,2]
[388464220,1759179063140,-1433.38008269,0.00023517,2]
[388464221,1759179063154,-1755.91,0.00023517,2]
[388464222,1759179063165,-480.0,0.00023517,2]
[388464223,1759179063186,-1633.6,0.00023517,2]
[388464224,1759179063206,-480.0,0.00023517,2]
[388464225,1759179063216,-2374.18,0.00023517,2]
[388464226,1759179063227,-480.83,0.00023517,2]
[388464227,1759179063236,-480.0,0.00023517,2]
[388464228,1759179063246,-480.0,0.00023517,2]
[388464229,1759179063256,-480.0,0.00023517,2]
[388464230,1759179063266,-268.23,0.00023517,2]
[388464231,1759179063275,-500.0,0.00023518,2]
[388464232,1759179063284,-465.17555873,0.00023518,2]
[388464233,1759179063294,-500.0,0.00023518,2]
[388464234,1759179063303,-500.0,0.00023518,2]
[388464235,1759179063312,-500.0,0.00023519,2]
[388464236,1759179063321,-500.0,0.00023519,2]
[388464237,1759179063331,-160.0,0.00023531,2]
[388464238,1759179063340,-285.355257,0.00023562,10]
[388464239,1759179063350,-480.0,0.00023619,2]
[388464240,1759179063360,-480.0,0.00023619,2]
[388464241,1759179063369,-508.96,0.00023619,2]
[388464242,1759179063378,-480.0,0.00023619,2]
[388464243,1759179063388,-480.0,0.00023619,2]
[388464244,1759179063399,-480.0,0.00023619,2]
[388464245,1759179063408,-359.47937334,0.00023619,2]
[388464246,1759179063418,-480.0,0.00023619,2]
[388464247,1759179063427,-480.0,0.00023619,2]
[388464248,1759179063437,-518.99,0.00023619,2]
[388464249,1759179063447,-480.0,0.00023619,2]
[388464250,1759179063456,-558.16,0.00023619,2]
[388464251,1759179063466,-638.41,0.00023619,2]
[388464252,1759179063475,-480.0,0.00023619,2]
[388464253,1759179063485,-480.0,0.00023619,2]
[388464254,1759179063495,-480.0,0.00023619,2]
[388464255,1759179063508,-480.0,0.00023619,2]
[388464256,1759179063517,-480.0,0.00023619,2]
[388464257,1759179063527,-480.0,0.00023619,2]
[388464258,1759179063537,-922.82,0.00023619,2]
[388464259,1759179063546,-480.0,0.00023619,2]
[388464260,1759179063556,-480.0,0.00023619,2]
[388464261,1759179063566,-480.0,0.00023619,2]
[388464262,1759179063576,-480.0,0.00023619,2]
[388464263,1759179063585,-480.0,0.00023619,2]
[388464264,1759179063595,-480.0,0.00023619,2]
[388464265,1759179063604,-480.0,0.00023619,2]
[388464266,1759179063614,-480.0,0.00023619,2]
[388464267,1759179063623,-480.0,0.00023619,2]
[388464268,1759179063633,-480.0,0.00023619,2]
[388464269,1759179063643,-480.0,0.00023619,2]
[388464270,1759179063653,-510.91,0.00023619,2]
[388464271,1759179063662,-480.0,0.00023619,2]
[388464272,1759179063672,-500.0,0.00023619,2]
[388464273,1759179063681,-580.09,0.00023619,2]
[388464274,1759179063690,-480.0,0.00023619,2]
[388464275,1759179063700,-480.0,0.00023619,2]
[388464276,1759179063709,-480.0,0.00023619,2]
[388464277,1759179063718,-480.0,0.00023619,2]
[388464278,1759179063727,-480.0,0.00023619,2]
[388464279,1759179063736,-537.81,0.00023619,2]
[388464280,1759179063746,-480.0,0.00023619,2]
[388464281,1759179063755,-480.0,0.00023619,2]
[388464282,1759179063765,-480.0,0.00023619,2]
[388464283,1759179063774,-1632.63,0.00023619,2]
[388464284,1759179063783,-511.13,0.00023619,2]
[388464285,1759179063792,-504.89,0.00023619,2]
[388464286,1759179063801,-480.0,0.00023619,2]
[388464287,1759179063811,-977.37,0.00023619,2]
[388464288,1759179063820,-529.96,0.00023619,2]
[388464289,1759179063829,-480.0,0.00023619,2]
[388464290,1759179063838,-480.0,0.00023619,2]
[388464291,1759179063848,-480.0,0.00023619,2]
[388464292,1759179063858,-526.13,0.00023619,2]
[388464293,1759179063868,-480.0,0.00023619,2]
[388464294,1759179063878,-593.92788882,0.00023619,2]
[388464295,1759179063887,-480.0,0.00023619,2]
[388464296,1759179063897,-480.0,0.00023619,2]
[388464297,1759179063906,-480.0,0.00023619,2]
[388464298,1759179063916,-480.0,0.00023619,2]
[388464299,1759179063926,-432.981423,0.00023619,2]
[388464300,1759179063935,-480.0,0.00023619,2]
[388464301,1759179063944,-480.0,0.00023619,2]
[388464302,1759179063954,-1083.22,0.00023619,2]
[388464303,1759179063963,-480.0,0.00023619,2]
[388464304,1759179063973,-1048.0,0.00023619,2]
[388464305,1759179063983,-480.0,0.00023619,2]
[388464306,1759179063993,-480.0,0.00023619,2]
[388464307,1759179064003,-480.0,0.00023619,2]
[388464308,1759179064013,-480.0,0.00023619,2]
[388464309,1759179064023,-1056.05,0.00023619,2]
[388464310,1759179064033,-766.76,0.00023619,2]
[388464311,1759179064042,-1966.72,0.00023619,2]
[388464312,1759179064051,-480.0,0.00023619,2]
[388464313,1759179064061,-480.0,0.00023619,2]
[388464314,1759179064070,-731.08,0.00023619,2]
[388464315,1759179064080,-480.0,0.00023619,2]
[388464316,1759179064090,-758.97,0.00023619,2]
[388464317,1759179064099,-561.85,0.00023619,2]
[388464318,1759179064109,-480.0,0.00023619,2]
[388464319,1759179064118,-895.39,0.00023619,2]
[388464320,1759179064127,-583.63,0.00023619,2]
[388464321,1759179064137,-480.0,0.00023619,2]
[388464322,1759179064147,-480.0,0.00023619,2]
[388464323,1759179064156,-151.0,0.00023619,7]
[388464324,1759179064166,-724.49,0.00023619,2]
[388464325,1759179064176,-480.0,0.00023619,2]
[388464326,1759179064188,-480.0,0.00023619,2]
[388464327,1759179064197,-944.07,0.00023619,2]
[388464328,1759179064207,-480.0,0.00023619,2]
[388464329,1759179064217,-609.39,0.00023619,2]
[388464330,1759179064227,-480.0,0.00023619,2]
[388464331,1759179064236,-199.442798,0.00023619,7]
[388464332,1759179064246,-199.442798,0.00023619,7]
[388464333,1759179064255,-1516.48,0.00023619,2]
[388464334,1759179064265,-199.442798,0.00023619,7]
[388464335,1759179064274,-199.442798,0.00023619,7]
[388464336,1759179064284,-151.0,0.00023619,7]
[388464337,1759179064294,-480.0,0.00023619,2]
[388464338,1759179064304,-151.0,0.00023619,7]
[388464339,1759179064313,-151.0,0.00023619,7]
[388464340,1759179064323,-151.0,0.00023619,7]
[388464341,1759179064332,-480.0,0.00023619,2]
[388464342,1759179064341,-480.0,0.00023619,2]
[388464343,1759179064351,-609.59,0.00023619,2]
[388464344,1759179064361,-480.0,0.00023619,2]
[388464345,1759179064371,-480.0,0.00023619,2]
[388464346,1759179064381,-480.0,0.00023619,2]
[388464347,1759179064390,-480.0,0.00023619,2]
[388464348,1759179064400,-480.0,0.00023619,2]
[388464349,1759179064410,-480.0,0.00023619,2]
[388464350,1759179064420,-480.0,0.00023619,2]
[388464351,1759179064430,-480.0,0.00023619,2]
[388464352,1759179064440,-537.09,0.00023619,2]
[388464353,1759179064450,-480.0,0.00023619,2]
[388464354,1759179064461,-480.0,0.00023619,2]
[388464355,1759179064471,-480.0,0.00023619,2]
[388464356,1759179064481,-480.0,0.00023619,2]
[388464357,1759179064492,-724.23,0.00023619,2]
[388464358,1759179064505,-480.0,0.00023619,2]
[388464359,1759179064519,-480.0,0.00023619,2]
[388464360,1759179064529,-722.74,0.00023619,2]
[388464361,1759179064540,-480.0,0.00023619,2]
[388464362,1759179064550,-599.3,0.00023619,2]
[388464363,1759179064560,-480.0,0.00023619,2]
[388464364,1759179064569,-529.03,0.00023619,2]
[388464365,1759179064580,-480.0,0.00023619,2]
[388464366,1759179064589,-480.0,0.00023619,2]
[388464367,1759179064599,-751.71,0.00023619,2]
[388464368,1759179064608,-586.65,0.00023619,2]
[388464369,1759179064618,-255.89812207,0.00023619,2]
[388464370,1759179064628,-1728.07,0.00023619,2]
[388464371,1759179064637,-480.0,0.00023619,2]
[388464372,1759179064647,-480.0,0.00023619,2]
[388464373,1759179064656,-240.73817,0.00023619,7]
[388464374,1759179064665,-298.38384188,0.00023619,2]
[388464375,1759179064675,-152.23786,0.00023619,7]
[388464376,1759179064684,-584.92,0.00023619,2]
[388464377,1759179064693,-151.0,0.00023619,7]
[388464378,1759179064703,-227.605274,0.00023619,7]
[388464379,1759179064714,-240.73817,0.00023619,7]
[388464380,1759179064723,-240.73817,0.00023619,7]
[388464381,1759179064732,-1315.41,0.00023619,2]
[388464382,1759179064742,-480.0,0.00023619,2]
[388464383,1759179064753,-240.73817,0.00023619,7]
[388464384,1759179064762,-841.12,0.00023619,2]
[388464385,1759179064772,-152.265535,0.00023619,7]
[388464386,1759179064925,-848.91,0.00023619,2]
[388464387,1759179064934,-512.60871991,0.00023619,2]
[388464388,1759179064943,-480.0,0.00023619,2]
[388464389,1759179064953,-151.0,0.00023619,7]
[388464390,1759179064963,-1030.93,0.00023619,2]
[388464391,1759179064972,-151.0,0.00023619,7]
[388464392,1759179064982,-480.0,0.00023619,2]
[388464393,1759179064991,-220.299151,0.00023619,7]
[388464394,1759179065002,-480.0,0.00023619,2]
[388464395,1759179065011,-329.43336374,0.00023619,2]
[388464396,1759179065156,-164.62,0.00022147,2]
[388464397,1759179065446,500.0,0.00022138,2]
[388464398,1759179065477,909.56,0.00022147,2]
[388464399,1759179065508,-151.0,0.000229,7]
[388464400,1759179065517,-151.0,0.000229,7]
[388464401,1759179065526,-151.0,0.00023242,7]
[388464402,1759179065535,-151.0,0.00023242,7]
[388464403,1759179065544,-151.0,0.00023433,7]
[388464404,1759179065553,-27.28,0.00023433,7]
[388464405,1759179065588,-500.00482423,0.00022421,2]
[388464406,1759179065603,-409.55517577,0.00022421,2]
[388464407,1759179065612,-44.3548048,0.00023433,7]
[388464408,1759179065687,480.45485604,0.00022147,2]
[388464409,1759179065724,480.0,0.00022139,2]
[388464410,1759179065832,-570.5799999,0.00022695,2]
[388464411,1759179066027,629.26,0.00022139,2]
[388464412,1759179066146,480.0,0.00022139,2]
[388464413,1759179066373,500.0,0.00022138,2]
[388464414,1759179066406,500.0,0.00022138,2]
[388464415,1759179066438,500.0,0.00022138,2]
[388464416,1759179066470,500.0,0.00022138,2]
[388464417,1759179066502,500.0,0.00022138,2]
[388464418,1759179066536,500.0,0.00022138,2]
[388464419,1759179066566,500.0,0.00022138,2]
[388464420,1759179066600,500.0,0.00022138,2]
[388464421,1759179066628,500.0,0.00022138,2]
[388464422,1759179066660,500.0,0.00022138,2]
[388464423,1759179066688,490.74689581,0.00022138,2]
[388464424,1759179066720,500.0,0.00022138,2]
[388464425,1759179066748,200.74824815,0.00022138,2]
[388464426,1759179066772,299.25175185,0.00022138,2]
[388464427,1759179066803,500.0,0.00022138,2]
[388464428,1759179066831,500.0,0.00022138,2]
[388464429,1759179066880,500.0,0.00022138,2]
[388464430,1759179066965,500.0,0.00022138,2]
[388464431,1759179066998,480.0,0.00022139,2]
[388464432,1759179067091,7220.75824815,0.0002204,2]
[388464433,1759179067117,10000.01,0.0002204,2]
[388464434,1759179067143,10000.01,0.0002204,2]
[388464435,1759179067169,10000.01,0.0002204,2]
[388464436,1759179067196,10000.01,0.0002204,2]
[388464437,1759179067223,10000.01,0.0002204,2]
[388464438,1759179067252,10000.01,0.0002204,2]
[388464439,1759179067280,10000.01,0.0002204,2]
[388464440,1759179067306,10000.01,0.0002204,2]
[388464441,1759179068513,-284.45643008,0.0002204,2]
[388464442,1759179089491,-257.69,0.0002203,3]
[388464443,1759179089527,-151.79164016,0.00022038,2]
[388464444,1759179099726,-773.08,0.0002203,3]
[388464445,1759179106065,-156.38364652,0.0002204,2]
[388464446,1759179108830,-376.38122859,0.0002204,2]
[388464447,1759179111146,-335.54356992,0.0002204,2]
[388464448,1759179113290,-184.2837217,0.00022038,2]
[388464449,1759179113313,-115.7162783,0.0002204,2]
[388464450,1759179114871,-159.10982068,0.0002204,2]
[388464451,1759179121333,-151.79164016,0.0002204,2]
[388464453,1759179159098,4383.1,0.0002203,3]
[388464454,1759179168440,408.55286254,0.0002203,2]
[388464455,1759179170823,2191.55,0.0002203,3]
[388464460,1759179181515,1095.77,0.0002203,3]
[388464462,1759179192260,374.87713746,0.0002203,3]
[388464463,1759179192285,173.01286254,0.0002203,3]
[388464464,1759179194541,759.75961684,0.00022,2]
[388464465,1759179201977,151.79164016,0.00022,2]
[388464466,1759179203233,273.94,0.0002203,3]
[388464468,1759179214092,61.60356992,0.0002203,3]
[388464469,1759179214122,760.24643008,0.0002203,3]
[388464471,1759179257967,184.28372171,0.00022,2]
[388464472,1759179306479,466.41,0.0002203,3]
[388464473,1759179315688,2742.51991688,0.00022,2]
[388464474,1759179341252,1152.7648752,0.0002114,2]
[388464475,1759179347575,2916.64,0.0002203,3]
[388464476,1759179358217,692.58093659,0.0002203,3]
[388464477,1759179358244,765.73906341,0.0002203,3]
[388464478,1759179368886,729.16,0.0002203,3]
[388464479,1759179379586,364.58,0.0002203,3]
[388464480,1759179380255,-300.0,0.00022036,2]
[388464481,1759179380286,-300.0,0.00022037,2]
[388464482,1759179380316,-300.0,0.00022037,2]
[388464483,1759179380349,-300.0,0.00022037,2]
[388464484,1759179380386,-300.0,0.00022037,2]
[388464485,1759179380419,-1200.0,0.00022037,2]
[388464486,1759179380454,-500.0,0.00022038,2]
[388464487,1759179380487,-500.0,0.00022038,2]
[388464488,1759179380524,-500.0,0.00022038,2]
[388464489,1759179380558,-500.0,0.00022038,2]
[388464490,1759179380593,-79.25499684,0.00022038,2]
[388464491,1759179380916,-441.50000632,0.00022038,2]
[388464492,1759179380950,-500.0,0.00022038,2]
[388464493,1759179380987,-500.0,0.00022038,2]
[388464494,1759179381022,-500.0,0.00022038,2]
[388464495,1759179381058,-500.0,0.00022038,2]
[388464496,1759179381093,-500.0,0.00022038,2]
[388464497,1759179381128,-400.24837444,0.00022038,2]
[388464498,1759179381162,-500.0,0.00022038,2]
[388464499,1759179381200,-500.0,0.00022038,2]
[388464500,1759179381235,-500.0,0.00022038,2]
[388464501,1759179381341,-500.0,0.00022038,2]
[388464502,1759179381378,-404.09785142,0.00022038,2]
[388464503,1759179381410,-618.41632176,0.00022038,2]
[388464504,1759179381442,-500.0,0.00022038,2]
[388464505,1759179381474,-500.0,0.00022038,2]
[388464506,1759179381509,-500.0,0.00022038,2]
[388464507,1759179381544,-500.0,0.00022038,2]
[388464508,1759179381580,-500.0,0.00022038,2]
[388464509,1759179381611,-500.0,0.00022038,2]
[388464510,1759179381646,-454.98165364,0.00022038,2]
[388464511,1759179381695,-45.01834636,0.00022038,2]
[388464512,1759179381726,-500.0,0.00022038,2]
[388464513,1759179381761,-500.0,0.00022038,2]
[388464514,1759179381794,-372.18145074,0.00022038,2]
[388464515,1759179381825,-500.0,0.00022038,2]
[388464516,1759179381857,-396.90166025,0.00022038,2]
[388464517,1759179381892,-500.0,0.00022038,2]
[388464518,1759179381925,-500.0,0.00022038,2]
[388464519,1759179381960,-500.0,0.00022038,2]
[388464520,1759179381993,-500.0,0.00022038,2]
[388464521,1759179382026,-500.0,0.00022038,2]
[388464522,1759179382058,-167.16844494,0.00022038,2]
[388464523,1759179382259,-182.18873807,0.00022038,2]
[388464524,1759179382290,-480.0,0.00022038,2]
[388464525,1759179382322,-480.0,0.00022038,2]
[388464526,1759179382354,-160.0,0.00022039,2]
[388464527,1759179382387,-500.0,0.00022039,2]
[388464528,1759179384547,-7877.60811596,0.00022039,2]
[388464531,1759179390084,-10000.01,0.00022039,2]
[388464532,1759179390220,-10000.01,0.00022039,2]
[388464533,1759179390616,-182.31,0.0002203,3]
[388464534,1759179390665,-9635.39,0.00022039,2]
[388464535,1759179390764,-10000.01,0.00022039,2]
[388464536,1759179391019,-2486.97188404,0.00022039,2]
[388464537,1759179391050,-1200.0,0.00022039,2]
[388464538,1759179391082,-480.0,0.00022039,2]
[388464539,1759179391114,-480.0,0.00022039,2]
[388464540,1759179391146,-226.06623192,0.00022039,2]
[388464541,1759179391243,-253.93376808,0.00022039,2]
[388464542,1759179391282,-480.0,0.00022039,2]
[388464543,1759179391315,-608.45,0.00022039,2]
[388464544,1759179391346,-480.0,0.00022039,2]
[388464545,1759179391381,-2467.09,0.00022039,2]
[388464546,1759179391416,-524.38,0.00022039,2]
[388464547,1759179391527,-880.17,0.00022039,2]
[388464548,1759179391562,-480.0,0.00022039,2]
[388464549,1759179391623,-480.0,0.00022039,2]
[388464550,1759179391681,-480.0,0.00022039,2]
[388464551,1759179391734,-953.83,0.00022039,2]
[388464552,1759179391792,-480.0,0.00022039,2]
[388464553,1759179391848,-480.0,0.00022039,2]
[388464554,1759179391898,-740.39,0.00022039,2]
[388464555,1759179392499,-139.78,0.00022039,2]
[388464556,1759179392537,-740.39,0.00022039,2]
[388464557,1759179392586,-51.23,0.00022039,2]
[388464558,1759179401889,-273.94,0.0002203,3]
[388464559,1759179410183,-273.01,0.0002203,3]
[388464560,1759179410234,-480.0,0.00022037,2]
[388464561,1759179410286,-480.0,0.00022037,2]
[388464562,1759179410331,-480.0,0.00022037,2]
[388464563,1759179410379,-1677.33,0.00022039,2]
[388464564,1759179410427,-1380.58,0.00022039,2]
[388464565,1759179410657,-636.94,0.00022039,2]
[388464566,1759179410712,-480.0,0.00022039,2]
[388464567,1759179410765,-480.0,0.00022039,2]
[388464568,1759179410817,-480.0,0.00022039,2]
[388464569,1759179410868,-480.0,0.00022039,2]
[388464570,1759179410920,-480.0,0.00022039,2]
[388464571,1759179410972,-480.0,0.00022039,2]
[388464572,1759179411024,-480.0,0.00022039,2]
[388464573,1759179411076,-480.0,0.00022039,2]
[388464574,1759179411129,-480.0,0.00022039,2]
[388464575,1759179411329,-1695.16,0.00022039,2]
[388464576,1759179411381,-1019.74,0.00022039,2]
[388464577,1759179411432,-546.23,0.00022039,2]
[388464578,1759179411487,-480.0,0.00022039,2]
[388464579,1759179411539,-480.0,0.00022039,2]
[388464580,1759179411591,-639.0,0.00022039,2]
[388464581,1759179411812,-821.21,0.00022039,2]
[388464582,1759179411862,-480.0,0.00022039,2]
[388464583,1759179411913,-480.0,0.00022039,2]
[388464584,1759179411961,-1275.58,0.00022039,2]
[388464585,1759179412010,-480.0,0.00022039,2]
[388464586,1759179412061,-797.55,0.00022039,2]
[388464587,1759179412110,-480.0,0.00022039,2]
[388464588,1759179413339,-344.05,0.00022039,2]
[388464589,1759179413382,-135.95,0.00022039,2]
[388464590,1759179413391,-344.05,0.00022039,2]
[388464591,1759179413428,-166.01,0.00022039,2]
[388464592,1759179413438,-205.32,0.00022039,2]
[388464593,1759179420386,-681.63,0.00022037,2]
[388464594,1759179420439,-274.68,0.00022039,2]
[388464595,1759179420492,-1095.37,0.00022039,2]
[388464596,1759179420651,-5896.65,0.0002204,2]
[388464597,1759179420705,-10000.01,0.0002204,2]
[388464598,1759179420836,-10000.01,0.0002204,2]
[388464599,1759179421014,-10000.01,0.0002204,2]
[388464600,1759179421206,-480.0,0.00022037,2]
[388464601,1759179421322,-9040.01,0.0002204,2]
[388464602,1759179421400,-10000.01,0.0002204,2]
[388464603,1759179421606,-10000.01,0.0002204,2]
[388464604,1759179421803,-10000.01,0.0002204,2]
[388464605,1759179430258,-1000.46,0.0002203,3]
[388464606,1759179430315,-1409.2,0.00022037,2]
[388464607,1759179430370,-480.0,0.00022039,2]
[388464608,1759179430423,-300.0,0.00022039,2]
[388464609,1759179430646,-480.0,0.00022037,2]
[388464610,1759179430660,-973.76,0.00022039,2]
[388464611,1759179430671,-2166.93,0.0002204,2]
[388464612,1759179440287,-500.23,0.0002203,3]
[388464613,1759179440339,-1663.16,0.00022039,2]
[388464614,1759179440387,-1200.0,0.00022039,2]
[388464615,1759179440629,-3273.23,0.0002204,2]
[388464616,1759179440698,-10000.01,0.0002204,2]
[388464617,1759179440731,-10000.01,0.0002204,2]
[388464618,1759179440792,-10000.01,0.0002204,2]
[388464619,1759179440982,-10000.01,0.0002204,2]
[388464620,1759179441147,-10000.01,0.0002204,2]
[388464621,1759179441334,-10000.01,0.0002204,2]
[388464622,1759179441517,-10000.01,0.0002204,2]
[388464623,1759179441676,-10000.01,0.0002204,2]
[388464624,1759179450505,-250.11,0.0002203,3]
[388464625,1759179475425,756.1390933,0.00021925,8]